bitfinex/quotes_SOLUSD_20250928
["timestamp","ask_amount","ask_price","bid_price","bid_amount"]
[1759034448641,2.05604903,202.36,202.33,56.16]
[1759034448854,2.05604903,202.35,202.34,14.87246858]
[1759034449626,2.05604903,202.35,202.34,15.53246858]
[1759034451438,7.62798132,202.35,202.33,55.5]
[1759034451657,2.68604903,202.34,202.33,55.5]
[1759034451950,2.68604903,202.34,202.32,14.87394333]
[1759034452320,2.05604903,202.34,202.32,14.87394333]
[1759034452637,2.05604903,202.33,202.32,14.87394333]
[1759034452837,6.99846982,202.33,202.32,14.87394333]
[1759034455426,7.62846982,202.33,202.3,55.5]
[1759034455622,2.05604903,202.31,202.3,0.71]
[1759034456678,2.05604903,202.32,202.3,13.69545386]
[1759034456860,2.05604903,202.32,202.3,12.98545386]
[1759034457166,2.05604903,202.33,202.31,0.71]
[1759034458138,2.05604903,202.33,202.31,15.58541837]
[1759034458438,2.05604903,202.33,202.32,0.71]
[1759034459063,6.99846982,202.33,202.31,14.87541837]
[1759034459244,2.05604903,202.32,202.31,14.87541837]
[1759034460546,6.99871411,202.32,202.31,14.87541837]
[1759034460745,6.99871411,202.32,202.31,70.37541837]
[1759034462947,6.99871411,202.32,202.31,55.5]
[1759034463155,6.99871411,202.32,202.31,70.37541838]
[1759034463551,6.99871411,202.32,202.31,55.5]
[1759034463734,2.05604903,202.32,202.31,55.5]
[1759034463934,37.76,202.34,202.31,56.21]
[1759034464144,28.05604903,202.34,202.32,0.71]
[1759034464347,2.05604903,202.34,202.32,0.71]
[1759034465350,2.05604903,202.35,202.32,71.08468082]
[1759034465661,2.05604903,202.35,202.33,0.71]
[1759034465867,2.05604903,202.35,202.32,55.5]
[1759034466162,28.05604903,202.35,202.34,0.71]
[1759034466742,28.05604903,202.35,202.34,15.58246858]
[1759034468349,32.99798132,202.35,202.34,15.58246858]
[1759034469562,32.99798132,202.35,202.34,14.87246858]
[1759034469763,32.99798132,202.35,202.34,70.37246858]
[1759034469945,32.99798132,202.35,202.34,55.5]
[1759034472051,70.75798132,202.35,202.34,55.5]
[1759034472871,32.99798132,202.35,202.34,56.17]
[1759034477966,30.94193229,202.35,202.34,56.17]
[1759034478155,28.05604903,202.35,202.34,56.17]
[1759034478651,28.05604903,202.35,202.34,71.04246858]
[1759034480950,32.99798132,202.35,202.34,71.04246858]
[1759034483783,2.05604903,202.36,202.34,71.04246858]
[1759034483979,2.05604903,202.36,202.35,0.7]
[1759034484190,2.05604903,202.36,202.35,56.2]
[1759034484363,2.05604903,202.36,202.35,71.07173132]
[1759034486483,6.99773711,202.36,202.35,71.07173132]
[1759034490598,4.94144388,202.37,202.35,71.07173132]
[1759034490986,2.05604903,202.36,202.35,71.07173132]
[1759034491379,2.05604903,202.36,202.35,56.2]
[1759034491586,4.94144388,202.37,202.35,56.2]
[1759034491790,2.05604903,202.36,202.35,71.07173132]
[1759034491980,2.05604903,202.36,202.35,56.2]
[1759034492300,4.94144388,202.37,202.35,71.07173132]
[1759034492500,2.05604903,202.36,202.35,70.37173132]
[1759034492703,2.05604903,202.36,202.35,55.5]
[1759034492889,2.05604903,202.37,202.35,14.87173131]
[1759034493083,28.05604903,202.39,202.36,0.7]
[1759034495690,32.99724875,202.38,202.37,15.57025701]
[1759034495990,32.99724875,202.38,202.37,14.87025701]
[1759034498311,32.99724875,202.38,202.37,15.57025701]
[1759034498787,6.99724875,202.38,202.37,15.57025701]
[1759034498988,3.33511926,202.39,202.37,15.57025701]
[1759034498989,8.27608166,202.39,202.37,15.57025701]
[1759034499197,2.05604903,202.38,202.37,14.87025701]
[1759034499807,2.05604903,202.38,202.37,15.57025701]
[1759034501695,6.99724875,202.38,202.37,15.57025701]
[1759034502409,6.99724875,202.38,202.37,71.07025701]
[1759034503807,3.33511926,202.39,202.37,71.07025701]
[1759034504016,2.05604903,202.38,202.37,70.37025701]
[1759034504504,2.05604903,202.38,202.37,71.07025701]
[1759034507013,3.33511926,202.39,202.37,71.07025701]
[1759034507317,2.05604903,202.38,202.37,70.37025701]
[1759034507695,2.05604903,202.38,202.37,71.07025701]
[1759034507916,3.33511926,202.39,202.37,76.01167519]
[1759034508098,0.1,202.4,202.38,0.7]
[1759034508297,0.1,202.4,202.38,56.2]
[1759034508510,0.1,202.4,202.39,5.6402624]
[1759034509620,0.1,202.4,202.39,61.1402624]
[1759034510718,1.41540427,202.4,202.39,61.1402624]
[1759034511522,0.1,202.4,202.39,61.1402624]
[1759034511816,1.41540427,202.4,202.39,61.1402624]
[1759034515616,0.1,202.4,202.39,61.1402624]
[1759034515813,1.41540427,202.4,202.39,61.1402624]
[1759034521117,6.35611573,202.4,202.39,60.4402624]
[1759034523214,6.35611573,202.4,202.39,61.1102624]
[1759034524507,1.41540427,202.4,202.39,61.1102624]
[1759034525508,6.35611573,202.4,202.39,61.1102624]
[1759034536150,6.35611573,202.4,202.39,60.4402624]
[1759034536845,6.35611573,202.4,202.39,61.1602624]
[1759034539359,6.35611573,202.4,202.39,60.4402624]
[1759034539853,6.35611573,202.4,202.39,61.1602624]
[1759034543843,6.35611573,202.4,202.39,60.4402624]
[1759034543844,6.98611573,202.4,202.39,60.4402624]
[1759034544042,6.98611573,202.4,202.39,55.5]
[1759034545458,6.35611573,202.4,202.39,55.5]
[1759034545934,0.1,202.4,202.39,56.15]
[1759034546136,0.1,202.4,202.39,71.01878299]
[1759034547358,1.41540427,202.4,202.39,71.01878299]
[1759034553558,0.1,202.4,202.39,71.01878299]
[1759034555904,0.1,202.4,202.39,108.75878299]
[1759034562450,0.1,202.4,202.39,71.01878299]
[1759034564946,0.1,202.4,202.39,75.95973857]
[1759034571381,0.1,202.4,202.39,71.01878299]
[1759034571761,0.1,202.4,202.39,75.95973857]
[1759034573283,0.1,202.4,202.39,71.01878299]
[1759034579389,0.1,202.4,202.39,70.36878299]
[1759034579592,2.78501981,202.4,202.39,70.36878299]
[1759034581179,7.72573127,202.4,202.39,70.36878299]
[1759034584382,2.15501981,202.4,202.39,70.36878299]
[1759034584583,2.15501981,202.4,202.39,71.03878299]
[1759034586091,0.1,202.4,202.39,71.03878299]
[1759034587004,2.15501981,202.4,202.39,70.36878299]
[1759034593184,2.15501981,202.4,202.39,71.03878299]
[1759034599522,0.1,202.4,202.39,71.03878299]
[1759034601907,2.15501981,202.4,202.39,71.03878299]
[1759034603517,2.15501981,202.4,202.39,70.36878299]
[1759034604488,2.15501981,202.4,202.39,71.06878299]
[1759034608423,0.1,202.4,202.39,71.06878299]
[1759034609808,0.1,202.4,202.39,108.78878299]
[1759034613797,5.04071146,202.4,202.39,71.06878299]
[1759034615211,7.09573127,202.4,202.39,70.36878299]
[1759034621698,7.09573127,202.4,202.39,71.06878299]
[1759034624742,7.09573127,202.4,202.39,70.36878299]
[1759034625245,7.09573127,202.4,202.39,71.06878299]
[1759034626921,7.09573127,202.4,202.39,70.36878299]
[1759034627520,5.04071146,202.4,202.39,70.36878299]
[1759034627731,7.09573127,202.4,202.39,71.06878299]
[1759034630538,6.35616601,202.4,202.39,71.06878299]
[1759034632445,1.41545455,202.4,202.39,71.06878299]
[1759034637249,0.1,202.4,202.39,71.06878299]
[1759034638833,1.41545455,202.4,202.39,71.06878299]
[1759034639223,1.41545455,202.4,202.39,70.36878299]
[1759034639424,1.41545455,202.4,202.39,71.06878299]
[1759034640233,6.35616601,202.4,202.39,71.06878299]
[1759034641041,6.35616601,202.4,202.39,70.36878299]
[1759034643667,6.98616601,202.4,202.39,55.5]
[1759034643840,9.69614331,202.4,202.39,55.5]
[1759034644040,9.69614331,202.4,202.39,56.2]
[1759034644538,9.69614331,202.4,202.39,55.5]
[1759034645343,9.69614331,202.4,202.39,56.2]
[1759034646555,0.1,202.4,202.39,56.2]
[1759034646861,0.1,202.4,202.39,71.06730926]
[1759034647263,0.1,202.4,202.39,113.70826484]
[1759034648268,0.1,202.4,202.39,108.76730926]
[1759034672787,0.1,202.4,202.39,108.06730926]
[1759034673085,0.1,202.4,202.39,108.71730926]
[1759034676364,0.1,202.4,202.39,108.06730926]
[1759034676765,0.1,202.4,202.39,108.71730926]
[1759034695081,0.1,202.4,202.39,113.65826484]
[1759034700904,0.1,202.4,202.39,108.06730926]
[1759034701914,7.72578392,202.4,202.39,70.36730926]
[1759034703185,2.78507246,202.4,202.39,14.86730926]
[1759034704197,2.15507246,202.4,202.39,14.86730926]
[1759034705194,0.1,202.4,202.39,15.55730926]
[1759034705509,0.1,202.4,202.39,14.86730926]
[1759034710318,2.15507246,202.4,202.39,70.36730926]
[1759034710827,2.15507246,202.4,202.39,71.03730926]
[1759034711196,2.15507246,202.4,202.39,70.36730926]
[1759034712096,0.1,202.4,202.39,71.03730926]
[1759034734454,0.1,202.4,202.39,108.71730926]
[1759034736840,0.1,202.4,202.39,113.65826484]
[1759034738921,0.1,202.4,202.39,108.71730926]
[1759034753461,0.1,202.4,202.39,108.04730926]
[1759034754757,0.1,202.4,202.39,108.76730926]
[1759034769177,6.35602413,202.4,202.39,108.04730926]
[1759034769359,6.35602413,202.4,202.39,14.86730926]
[1759034769558,6.98602413,202.4,202.36,55.5]
[1759034769762,1.31531267,202.37,202.36,93.16]
[1759034770249,1.31531267,202.37,202.36,93.88]
[1759034770445,1.31531267,202.37,202.36,98.92071146]
[1759034774379,1.31531267,202.38,202.36,98.92071146]
[1759034774780,1.31531267,202.38,202.36,93.88]
[1759034774960,1.31531267,202.38,202.37,12.35117589]
[1759034778581,1.31531267,202.38,202.37,67.85117589]
[1759034779284,1.31531267,202.39,202.37,67.85117589]
[1759034779659,1.31531267,202.39,202.37,56.22]
[1759034779882,0.1,202.4,202.37,56.22]
[1759034780184,1.31531267,202.39,202.38,4.94048299]
[1759034783783,0.1,202.4,202.38,4.94048299]
[1759034784084,0.1,202.4,202.39,0.7]
[1759034784591,0.1,202.4,202.39,56.2]
[1759034784782,0.1,202.4,202.39,71.06730926]
[1759034790194,0.1,202.4,202.39,76.00826484]
[1759034801402,0.1,202.4,202.39,70.36730926]
[1759034801704,1.41531267,202.4,202.39,108.00730926]
[1759034804608,1.41531267,202.4,202.39,93.14]
[1759034809204,1.41531267,202.4,202.39,93.84]
[1759034810401,0.1,202.4,202.39,93.84]
[1759034810612,0.1,202.4,202.39,93.14]
[1759034810990,0.1,202.4,202.39,93.83]
[1759034813699,0.1,202.4,202.39,108.69730926]
[1759034814100,0.1,202.4,202.39,93.83]
[1759034815007,0.1,202.4,202.39,98.77007699]
[1759034817418,0.1,202.4,202.39,103.71103257]
[1759034824729,0.1,202.4,202.39,119.36153185]
[1759034825522,0.1,202.4,202.39,117.30662658]
[1759034825720,0.1,202.4,202.39,74.725671]
[1759034825912,0.1,202.4,202.39,60.44007699]
[1759034826107,0.1,202.4,202.39,98.08007699]
[1759034826424,2.15490527,202.4,202.39,98.08007699]
[1759034826621,2.78490527,202.4,202.39,98.08007699]
[1759034826822,2.78490527,202.4,202.39,93.14]
[1759034828325,2.15490527,202.4,202.39,93.14]
[1759034830929,2.15490527,202.4,202.39,55.5]
[1759034832814,7.72561673,202.4,202.34,56.16]
[1759034833127,2.05490527,202.36,202.35,45.36561673]
[1759034833326,2.05490527,202.37,202.35,46.02561673]
[1759034837937,2.05490527,202.37,202.35,101.52561673]
[1759034840513,2.05490527,202.37,202.36,0.72]
[1759034840913,2.05490527,202.37,202.36,56.22]
[1759034842133,2.05490527,202.38,202.36,56.22]
[1759034842443,2.05490527,202.39,202.37,0.72]
[1759034842939,0.1,202.4,202.37,38.36]
[1759034843121,0.1,202.4,202.38,6.29051705]
[1759034843614,0.1,202.4,202.39,0.72]
[1759034847079,0.1,202.4,202.39,56.22]
[1759034847541,0.1,202.4,202.39,55.5]
[1759034847728,0.1,202.4,202.39,56.22]
[1759034848140,0.1,202.4,202.39,64.49537424]
[1759034849235,0.1,202.4,202.39,69.43632982]
[1759034851954,0.1,202.4,202.39,64.49537424]
[1759034858463,0.1,202.4,202.39,69.43632982]
[1759034864762,0.1,202.4,202.39,61.16095558]
[1759034865264,0.1,202.4,202.39,66.10095707]
[1759034872574,0.1,202.4,202.39,55.5]
[1759034874452,0.1,202.4,202.39,56.16]
[1759034874869,0.1,202.4,202.39,55.5]
[1759034875448,0.1,202.4,202.39,56.16]
[1759034879576,0.1,202.4,202.39,55.5]
[1759034879752,0.1,202.4,202.39,56.16]
[1759034880854,0.1,202.4,202.39,55.5]
[1759034881656,5.04071146,202.4,202.39,55.5]
[1759034881855,6.98593798,202.4,202.39,55.5]
[1759034882072,6.98593798,202.4,202.36,55.5]
[1759034882272,5.67071146,202.4,202.37,37.62]
[1759034882768,0.63,202.39,202.37,37.62]
[1759034883161,0.63,202.39,202.36,93.12]
[1759034883657,1.31522652,202.38,202.36,93.12]
[1759034884080,1.31522652,202.38,202.36,93.78]
[1759034886060,6.25619633,202.39,202.36,93.78]
[1759034886378,6.25619633,202.39,202.37,0.66]
[1759034887864,1.31522652,202.39,202.37,0.66]
[1759034888074,0.1,202.4,202.37,0.66]
[1759034888268,1.41522652,202.4,202.37,0.66]
[1759034890865,0.1,202.4,202.38,0.71]
[1759034891482,0.1,202.4,202.38,56.21]
[1759034892361,0.1,202.4,202.38,55.5]
[1759034892563,0.1,202.4,202.38,56.21]
[1759034894664,0.1,202.4,202.39,0.71]
[1759034894882,1.41522652,202.4,202.39,0.71]
[1759034895187,1.41522652,202.4,202.38,55.5]
[1759034895391,1.41522652,202.4,202.38,56.21]
[1759034898489,0.1,202.4,202.38,56.21]
[1759034899488,1.41522652,202.4,202.38,56.21]
[1759034900867,1.41522652,202.4,202.38,55.5]
[1759034901786,1.41522652,202.4,202.38,56.16]
[1759034902493,6.35600509,202.4,202.38,56.16]
[1759034902788,1.31522652,202.39,202.38,55.5]
[1759034904494,1.31522652,202.39,202.38,56.16]
[1759034905686,1.41522652,202.4,202.38,56.16]
[1759034905989,1.41522652,202.4,202.39,0.66]
[1759034906691,0.1,202.4,202.39,0.66]
[1759034907680,1.41522652,202.4,202.39,0.66]
[1759034909697,0.1,202.4,202.39,0.66]
[1759034911484,0.1,202.4,202.38,56.16]
[1759034912872,0.1,202.4,202.38,55.5]
[1759034913099,0.1,202.4,202.39,0.66]
[1759034916994,1.41522652,202.4,202.39,0.66]
[1759034918790,0.1,202.4,202.39,0.66]
[1759034921803,0.1,202.4,202.38,56.16]
[1759034922482,0.1,202.4,202.39,0.66]
[1759034925280,0.1,202.4,202.39,6.91576019]
[1759034926009,1.41522652,202.4,202.39,6.91576019]
[1759034927808,0.1,202.4,202.39,6.91576019]
[1759034929104,0.1,202.4,202.39,0.66]
[1759034929311,6.35593798,202.4,202.38,55.5]
[1759034929506,6.35593798,202.4,202.38,62.41576019]
[1759034930002,6.35593798,202.4,202.39,0.66]
[1759034930185,6.35593798,202.4,202.38,62.45576019]
[1759034930383,1.41522652,202.4,202.38,62.45576019]
[1759034930586,1.41522652,202.4,202.39,0.7]
[1759034932210,0.1,202.4,202.39,0.7]
[1759034932897,0.1,202.4,202.39,5.64043734]
[1759034947723,0.1,202.4,202.39,4.94043734]
[1759034948630,7.09588125,202.4,202.39,4.94043734]
[1759034951931,7.09588125,202.4,202.39,5.66043734]
[1759034952161,5.04071146,202.4,202.39,5.66043734]
[1759034955514,0.1,202.4,202.39,5.66043734]
[1759034967943,0.1,202.4,202.39,7.71560713]
[1759034968243,0.1,202.4,202.39,12.65656271]
[1759034969046,0.1,202.4,202.39,68.15656271]
[1759034973443,0.1,202.4,202.39,63.21560713]
[1759034985357,0.1,202.4,202.39,68.15656271]
[1759034987344,0.1,202.4,202.39,63.21560713]
[1759034993078,0.1,202.4,202.39,68.15656271]
[1759034993372,0.1,202.4,202.39,63.21560713]
[1759034994575,0.1,202.4,202.39,62.47536315]
[1759034995882,0.1,202.4,202.39,67.41631873]
[1759034996179,0.1,202.4,202.39,81.01191274]
[1759035005578,0.1,202.4,202.39,86.27161598]
[1759035016390,0.1,202.45,202.41,55.3]
[1759035016594,0.1,202.45,202.44,1.31492581]
[1759035016900,0.1,202.45,202.44,38.91492581]
[1759035017077,0.1,202.45,202.44,47.18507107]
[1759035017779,0.1,202.45,202.44,52.1248063]
[1759035022369,0.1,202.45,202.44,107.4248063]
[1759035025084,0.1,202.45,202.44,108.1148063]
[1759035037108,0.1,202.45,202.44,106.79988049]
[1759035037305,0.1,202.45,202.44,108.1148063]
[1759035038801,0.1,202.45,202.44,106.10988049]
[1759035038991,0.1,202.45,202.44,106.08988049]
[1759035039608,0.1,202.45,202.44,68.50988049]
[1759035039905,0.1,202.45,202.44,106.08988049]
[1759035040095,0.1,202.45,202.44,68.50988049]
[1759035040294,0.1,202.45,202.44,106.08988049]
[1759035040493,0.1,202.45,202.44,107.4048063]
[1759035042614,0.1,202.45,202.44,69.8248063]
[1759035042909,0.1,202.45,202.44,107.4048063]
[1759035043223,0.1,202.45,202.44,69.8248063]
[1759035043424,0.1,202.45,202.44,108.0948063]
[1759035045819,0.1,202.45,202.44,106.08988049]
[1759035046113,0.1,202.45,202.44,108.0948063]
[1759035046414,0.1,202.45,202.44,69.19988049]
[1759035046613,0.1,202.45,202.44,106.77988049]
[1759035047611,0.1,202.45,202.44,108.0948063]
[1759035047805,0.1,202.45,202.44,70.5148063]
[1759035048005,0.1,202.45,202.44,108.0948063]
[1759035048813,0.73,202.45,202.44,63.57014526]
[1759035049003,0.73,202.45,202.44,101.15014526]
[1759035050400,0.1,202.45,202.44,101.15014526]
[1759035051123,0.1,202.45,202.44,106.08988049]
[1759035052626,0.1,202.45,202.44,101.15014526]
[1759035054809,0.1,202.45,202.44,106.08988049]
[1759035057035,0.1,202.45,202.44,106.78988049]
[1759035061941,0.1,202.45,202.44,106.08988049]
[1759035062111,0.1,202.45,202.44,106.78988049]
[1759035063551,0.1,202.45,202.44,108.84374603]
[1759035063735,0.1,202.45,202.44,122.43934004]
[1759035066343,0.1,202.45,202.44,122.33934004]
[1759035073639,0.1,202.45,202.44,120.2854745]
[1759035077831,0.1,202.45,202.44,119.5854745]
[1759035078031,0.1,202.45,202.44,122.34934004]
[1759035079650,0.1,202.45,202.44,84.76934004]
[1759035079846,0.1,202.45,202.44,122.34934004]
[1759035084557,0.73,202.45,202.44,63.47014526]
[1759035084855,0.73,202.45,202.44,101.05014526]
[1759035086153,0.1,202.45,202.44,105.98988049]
[1759035092848,0.1,202.45,202.44,101.05014526]
[1759035096449,0.1,202.45,202.44,101.73014526]
[1759035097265,0.1,202.45,202.44,64.15014526]
[1759035097556,0.1,202.45,202.44,101.73014526]
[1759035097762,0.1,202.45,202.44,106.66988049]
[1759035099864,0.1,202.45,202.44,69.08988049]
[1759035100166,0.1,202.45,202.44,106.66988049]
[1759035100965,0.1,202.45,202.44,69.08988049]
[1759035101265,0.1,202.45,202.44,106.66988049]
[1759035102291,0.1,202.45,202.44,69.08988049]
[1759035102569,0.1,202.45,202.44,106.66988049]
[1759035103169,0.1,202.45,202.44,69.08988049]
[1759035103382,0.1,202.45,202.44,106.66988049]
[1759035103772,0.1,202.45,202.44,69.08988049]
[1759035104070,0.1,202.45,202.44,106.66988049]
[1759035105574,0.1,202.45,202.44,98.39973523]
[1759035106052,0.1,202.45,202.44,103.33829717]
[1759035111081,0.1,202.45,202.44,105.39216271]
[1759035112964,0.1,202.45,202.44,97.71856194]
[1759035113363,0.1,202.45,202.44,92.78]
[1759035113573,0.1,202.45,202.44,102.65828093]
[1759035113768,0.1,202.45,202.44,103.36828093]
[1759035119184,0.1,202.45,202.44,102.65828093]
[1759035119474,0.1,202.45,202.44,97.71973523]
[1759035119683,0.1,202.45,202.44,103.36828093]
[1759035122379,0.1,202.45,202.44,104.68274679]
[1759035126065,0.1,202.45,202.44,103.36828093]
[1759035148409,0.1,202.45,202.44,102.65828093]
[1759035149410,0.1,202.45,202.44,103.36828093]
[1759035153813,0.1,202.45,202.44,98.4285457]
[1759035154011,0.73,202.45,202.44,60.1385457]
[1759035154220,2.04446586,202.45,202.44,92.78]
[1759035154912,0.73,202.45,202.44,92.78]
[1759035155206,0.1,202.45,202.44,92.78]
[1759035155992,0.1,202.45,202.44,55.2]
[1759035158506,0.1,202.45,202.44,60.84973523]
[1759035158700,0.1,202.45,202.44,65.78857963]
[1759035167803,0.1,202.45,202.44,60.1388444]
[1759035168627,0.1,202.45,202.44,60.8488444]
[1759035168805,0.1,202.45,202.44,65.78857963]
[1759035172326,0.1,202.45,202.44,60.1388444]
[1759035173639,0.1,202.45,202.44,60.8488444]
[1759035174009,0.1,202.45,202.44,65.78857963]
[1759035175718,0.1,202.45,202.44,65.07857963]
[1759035175925,0.1,202.45,202.44,65.78857963]
[1759035178716,0.73,202.45,202.44,60.1388444]
[1759035179510,0.1,202.45,202.44,60.1388444]
[1759035180110,0.1,202.45,202.44,55.2]
[1759035181536,0.1,202.45,202.44,58.5373327]
[1759035181927,2.78386423,202.45,202.44,55.2]
[1759035182430,2.15386423,202.45,202.44,55.2]
[1759035182823,2.15386423,202.45,202.42,98.43013414]
[1759035183025,2.15386423,202.45,202.43,0.71]
[1759035183617,0.63,202.44,202.42,60.76902657]
[1759035184136,2.78386423,202.45,202.42,60.76902657]
[1759035185132,2.05386423,202.44,202.42,55.2]
[1759035186143,2.05386423,202.44,202.42,55.91]
[1759035188947,2.15386423,202.45,202.42,55.91]
[1759035189158,0.1,202.45,202.43,0.71]
[1759035189450,0.1,202.45,202.44,0.71]
[1759035192738,2.15386423,202.45,202.43,4.93881159]
[1759035193046,2.15386423,202.45,202.43,0.67]
[1759035193955,7.09335882,202.45,202.43,0.67]
[1759035194128,10.42730375,202.45,202.43,0.67]
[1759035194451,7.09335882,202.45,202.43,0.67]
[1759035195949,7.09335882,202.45,202.42,55.2]
[1759035196251,7.09335882,202.45,202.42,55.87]
[1759035196752,2.68386423,202.44,202.42,55.2]
[1759035197260,2.05386423,202.44,202.42,55.2]
[1759035197436,5.66949459,202.45,202.42,55.2]
[1759035197762,7.72335882,202.45,202.42,55.2]
[1759035197937,26.0,202.41,202.35,0.67]
[1759035198260,2.05386423,202.36,202.35,12.34813477]
[1759035198560,2.05386423,202.36,202.27,17.30360408]
[1759035198561,28.68386423,202.36,202.31,0.67]
[1759035198746,2.05386423,202.33,202.31,0.67]
[1759035198930,2.05386423,202.33,202.3,52.47320592]
[1759035199130,2.05386423,202.34,202.31,0.67]
[1759035199554,6.99608727,202.34,202.31,0.67]
[1759035200129,2.05386423,202.33,202.31,0.67]
[1759035200661,4.94222304,202.34,202.31,0.67]
[1759035201247,6.99608727,202.34,202.31,0.67]
[1759035202151,6.99608727,202.34,202.3,14.87320592]
[1759035202330,2.05386423,202.33,202.3,0.7]
[1759035202855,2.05386423,202.34,202.3,0.7]
[1759035203248,7.62579652,202.35,202.3,0.7]
[1759035204960,4.94169422,202.36,202.3,2.75386423]
[1759035205248,6.99555845,202.36,202.31,0.7]
[1759035205446,7.62555845,202.36,202.3,16.92780756]
[1759035205661,7.62555845,202.36,202.32,0.7]
[1759035212760,40.87394333,202.39,202.32,0.7]
[1759035213055,10.5712708,202.45,202.32,0.7]
[1759035213056,37.68,202.44,202.38,2.05386423]
[1759035213255,7.09356124,202.45,202.39,2.75386423]
[1759035213444,26.0,202.42,202.39,2.75386423]
[1759035213647,26.0,202.42,202.4,14.86804609]
[1759035213834,26.63,202.42,202.4,14.86804609]
[1759035214258,31.57023894,202.42,202.4,14.86804609]
[1759035214461,0.63,202.41,202.37,2.75386423]
[1759035214665,0.63,202.41,202.38,14.86804609]
[1759035214964,30.94023894,202.42,202.38,14.86804609]
[1759035215263,31.57023894,202.42,202.38,15.56804609]
[1759035215837,31.57023894,202.42,202.38,2.75386423]
[1759035216348,5.5704805,202.41,202.37,14.86951997]
[1759035216549,2.05386423,202.38,202.32,2.05386423]
[1759035216752,28.05386423,202.37,202.33,14.87320592]
[1759035216951,26.0,202.37,202.33,14.87320592]
[1759035217152,26.0,202.37,202.34,0.7]
[1759035217761,28.68386423,202.38,202.34,0.7]
[1759035217964,66.38386423,202.38,202.34,0.7]
[1759035218439,4.94144388,202.37,202.34,0.7]
[1759035218962,4.94144388,202.37,202.33,0.7]
[1759035219277,5.57144388,202.37,202.33,0.7]
[1759035219566,4.94144388,202.37,202.33,0.7]
[1759035220468,4.94144388,202.37,202.32,2.05386423]
[1759035220769,4.94144388,202.37,202.34,0.7]
[1759035220950,4.94144388,202.37,202.33,14.87320592]
[1759035221143,5.57144388,202.37,202.33,15.57320592]
[1759035222039,4.94144388,202.37,202.34,0.7]
[1759035222234,6.99530811,202.37,202.34,0.7]
[1759035222567,0.63,202.36,202.32,2.05386423]
[1759035222739,0.63,202.36,202.32,72.82707015]
[1759035222939,6.99530811,202.37,202.32,72.82707015]
[1759035223141,7.62530811,202.37,202.33,0.7]
[1759035223637,0.1,202.45,202.36,2.05386423]
[1759035223856,0.1,202.45,202.44,2.05386423]
[1759035224056,0.1,202.45,202.44,2.75386423]
[1759035224568,0.1,202.45,202.42,2.05386423]
[1759035224738,0.1,202.45,202.44,12.34282465]
[1759035225269,0.1,202.45,202.44,13.04282465]
[1759035225569,0.1,202.45,202.44,12.34282465]
[1759035225872,0.1,202.45,202.42,5.6401092]
[1759035226249,0.1,202.45,202.43,2.75386423]
[1759035226663,0.1,202.45,202.44,0.7]
[1759035227383,0.1,202.45,202.44,5.63973523]
[1759035228467,0.1,202.45,202.44,0.7]
[1759035228649,0.1,202.45,202.43,2.75386423]
[1759035228850,0.1,202.45,202.43,7.6938071]
[1759035230281,0.1,202.45,202.43,62.8938071]
[1759035230580,0.1,202.45,202.43,62.1938071]
[1759035230750,0.1,202.45,202.43,62.8838071]
[1759035230955,0.1,202.45,202.44,0.69]
[1759035231362,0.1,202.45,202.44,5.62973523]
[1759035236283,0.1,202.45,202.44,60.82973523]
[1759035239191,5.74950133,202.45,202.4,1.31445293]
[1759035239392,0.71,202.44,202.4,2.00445293]
[1759035239584,0.71,202.44,202.4,0.69]
[1759035241191,0.71,202.44,202.4,2.00445293]
[1759035241695,0.71,202.44,202.4,6.94510993]
[1759035243290,0.71,202.44,202.4,6.25510993]
[1759035243468,0.71,202.44,202.41,0.69]
[1759035243673,0.71,202.44,202.4,6.25510993]